[Event "MČR v bleskovém šachu družstev 2019"]
[Site "Teplice, Czech Republic"]
[Date "2019.09.14"]
[Round "4.24"]
[White "Broucek, Tomas"]
[Black "Ocelak, Jakub"]
[Result "1/2-1/2"]
[TimeControl "3 mim. + 2 s"]
[WhiteElo "2044"]
[BlackElo "1705"]

1. d4 {[%clk 00:03:01]} {[%emt 00:00:02]} e6 {[%clk 00:03:02]} {[%emt
00:00:02]} 2. Nf3 {[%clk 00:03:02]} {[%emt 00:00:02]} f5 {[%clk 00:02:57]}
{[%emt 00:00:07]} 3. e3 {[%clk 00:02:57]} {[%emt 00:00:08]} d5 {[%clk
00:02:57]} {[%emt 00:00:01]} 4. Nbd2 {[%clk 00:02:52]} {[%emt 00:00:07]} Nf6
{[%clk 00:02:53]} {[%emt 00:00:06]} 5. Ne5 {[%clk 00:02:52]} {[%emt 00:00:02]}
Nbd7 {[%clk 00:02:48]} {[%emt 00:00:07]} 6. f4 {[%clk 00:02:47]} {[%emt
00:00:07]} Bd6 {[%clk 00:02:42]} {[%emt 00:00:08]} 7. Ndf3 {[%clk 00:02:46]}
{[%emt 00:00:03]} c6 {[%clk 00:02:41]} {[%emt 00:00:04]} 8. Bd3 {[%clk
00:02:46]} {[%emt 00:00:01]} Ne4 {[%clk 00:02:34]} {[%emt 00:00:09]} 9. O-O
{[%clk 00:02:40]} {[%emt 00:00:08]} O-O {[%clk 00:02:34]} {[%emt 00:00:02]} 10.
c3 {[%clk 00:02:11]} {[%emt 00:00:32]} Ndf6 {[%clk 00:02:33]} {[%emt 00:00:02]}
11. Qc2 {[%clk 00:01:47]} {[%emt 00:00:26]} Bd7 {[%clk 00:02:32]} {[%emt
00:00:03]} 12. b3 {[%clk 00:01:47]} {[%emt 00:00:02]} Be8 {[%clk 00:02:16]}
{[%emt 00:00:18]} 13. a4 {[%clk 00:01:48]} {[%emt 00:00:01]} Qe7 {[%clk
00:02:16]} {[%emt 00:00:03]} 14. a5 {[%clk 00:01:44]} {[%emt 00:00:06]} Rc8
{[%clk 00:02:09]} {[%emt 00:00:08]} 15. c4 {[%clk 00:01:33]} {[%emt 00:00:13]}
Bh5 {[%clk 00:01:58]} {[%emt 00:00:13]} 16. c5 {[%clk 00:01:24]} {[%emt
00:00:11]} Bc7 {[%clk 00:01:53]} {[%emt 00:00:07]} 17. a6 {[%clk 00:01:22]}
{[%emt 00:00:03]} Bxe5 {[%clk 00:01:39]} {[%emt 00:00:17]} 18. fxe5 {[%clk
00:00:51]} {[%emt 00:00:33]} Ng4 {[%clk 00:01:27]} {[%emt 00:00:14]} 19. axb7
{[%clk 00:00:49]} {[%emt 00:00:04]} Rb8 {[%clk 00:01:10]} {[%emt 00:00:18]} 20.
Rxa7 {[%clk 00:00:44]} {[%emt 00:00:08]} Rxb7 {[%clk 00:01:10]} {[%emt
00:00:02]} 21. Rxb7 {[%clk 00:00:42]} {[%emt 00:00:04]} Qxb7 {[%clk 00:01:11]}
22. h3 {[%clk 00:00:37]} {[%emt 00:00:07]} Nh6 {[%clk 00:01:08]} {[%emt
00:00:05]} 23. Bxe4 {[%clk 00:00:32]} {[%emt 00:00:08]} fxe4 {[%clk 00:01:08]}
{[%emt 00:00:02]} 24. Ng5 {[%clk 00:00:30]} {[%emt 00:00:04]} Rxf1+ {[%clk
00:00:58]} {[%emt 00:00:12]} 25. Kxf1 {[%clk 00:00:31]} {[%emt 00:00:01]} Bf7
{[%clk 00:00:59]} 26. Bd2 {[%clk 00:00:23]} {[%emt 00:00:10]} Qb5+ {[%clk
00:00:58]} {[%emt 00:00:02]} 27. Kf2 {[%clk 00:00:21]} {[%emt 00:00:05]} Nf5
{[%clk 00:00:52]} {[%emt 00:00:08]} 28. Nxf7 {[%clk 00:00:21]} {[%emt
00:00:02]} Kxf7 {[%clk 00:00:52]} {[%emt 00:00:02]} 29. Qa2 {[%clk 00:00:13]}
{[%emt 00:00:10]} Ne7 {[%clk 00:00:52]} {[%emt 00:00:02]} 30. Qc2 {[%clk
00:00:11]} {[%emt 00:00:03]} Ng6 {[%clk 00:00:48]} {[%emt 00:00:06]} 31. g3
{[%clk 00:00:12]} {[%emt 00:00:03]} Ne7 {[%clk 00:00:47]} {[%emt 00:00:03]} 32.
Bc3 {[%clk 00:00:12]} {[%emt 00:00:02]} h6 {[%clk 00:00:42]} {[%emt 00:00:07]}
33. Qe2 {[%clk 00:00:13]} {[%emt 00:00:01]} Kg8 {[%clk 00:00:42]} {[%emt
00:00:02]} 34. Qxb5 {[%clk 00:00:13]} {[%emt 00:00:02]} cxb5 {[%clk 00:00:42]}
{[%emt 00:00:02]} 35. Ba5 {[%clk 00:00:13]} {[%emt 00:00:01]} Nc6 {[%clk
00:00:43]} {[%emt 00:00:02]} 36. b4 {[%clk 00:00:11]} {[%emt 00:00:03]} Kf7
{[%clk 00:00:43]} {[%emt 00:00:02]} 37. g4 {[%clk 00:00:12]} {[%emt 00:00:01]}
Ke8 {[%clk 00:00:43]} {[%emt 00:00:02]} 38. Ke2 {[%clk 00:00:13]} Kd7 {[%clk
00:00:44]} {[%emt 00:00:01]} 39. Kd2 {[%clk 00:00:14]} {[%emt 00:00:01]} Kc8
{[%clk 00:00:45]} 40. Kc3 {[%clk 00:00:15]} {[%emt 00:00:01]} Kb7 {[%clk
00:00:46]} 41. Bb6 {[%clk 00:00:14]} {[%emt 00:00:03]} Ne7 {[%clk 00:00:43]}
{[%emt 00:00:05]} 42. Bd8 {[%clk 00:00:13]} {[%emt 00:00:03]} Nc6 {[%clk
00:00:43]} {[%emt 00:00:02]} 43. Bh4 {[%clk 00:00:13]} {[%emt 00:00:02]} g5
{[%clk 00:00:43]} {[%emt 00:00:02]} 44. Bg3 {[%clk 00:00:13]} {[%emt 00:00:02]}
Ne7 {[%clk 00:00:42]} {[%emt 00:00:03]} 45. h4 {[%clk 00:00:11]} {[%emt
00:00:04]} Ng6 {[%clk 00:00:43]} 46. hxg5 {[%clk 00:00:08]} {[%emt 00:00:06]}
hxg5 {[%clk 00:00:45]} 47. Kb3 {[%clk 00:00:08]} {[%emt 00:00:02]} Kc6 {[%clk
00:00:46]} {[%emt 00:00:01]} 48. Kc3 {[%clk 00:00:08]} {[%emt 00:00:02]} Nf8
{[%clk 00:00:46]} {[%emt 00:00:01]} 49. Kb3 {[%emt 00:00:22]} 1/2-1/2

[Event "MČR v bleskovém šachu družstev 2019"]
[Site "Teplice, Czech Republic"]
[Date "2019.09.14"]
[Round "4.25"]
[White "Soural, Jan"]
[Black "Bach, Markus"]
[Result "0-1"]
[TimeControl "3 mim. + 2 s"]
[WhiteFideId "311928"]
[BlackFideId "24603376"]
[WhiteElo "2107"]
[BlackElo "2259"]

1. d4 {[%clk 00:03:03]} d5 {[%clk 00:03:00]} {[%emt 00:00:04]} 2. c4 {[%clk
00:03:04]} {[%emt 00:00:01]} c6 {[%clk 00:03:01]} 3. Nf3 {[%clk 00:03:05]}
{[%emt 00:00:01]} e6 {[%clk 00:03:02]} {[%emt 00:00:03]} 4. g3 {[%clk
00:03:03]} {[%emt 00:00:03]} Nf6 {[%clk 00:02:58]} {[%emt 00:00:05]} 5. Bg2
{[%clk 00:03:04]} Be7 {[%clk 00:02:59]} {[%emt 00:00:01]} 6. O-O {[%clk
00:03:04]} {[%emt 00:00:04]} O-O {[%clk 00:03:00]} 7. Qc2 {[%clk 00:03:03]}
{[%emt 00:00:03]} b6 {[%clk 00:02:55]} {[%emt 00:00:06]} 8. Nbd2 {[%clk
00:03:01]} {[%emt 00:00:05]} Bb7 {[%clk 00:02:54]} {[%emt 00:00:02]} 9. e4
{[%clk 00:02:54]} {[%emt 00:00:09]} dxe4 {[%clk 00:02:53]} {[%emt 00:00:03]} 10.
Nxe4 {[%clk 00:02:54]} Nbd7 {[%clk 00:02:48]} {[%emt 00:00:09]} 11. Ne5 {[%clk
00:02:33]} {[%emt 00:00:23]} Qc8 {[%clk 00:02:19]} {[%emt 00:00:31]} 12. Bg5
{[%clk 00:02:07]} {[%emt 00:00:28]} Re8 {[%clk 00:01:24]} {[%emt 00:00:57]} 13.
Bxf6 {[%clk 00:01:28]} {[%emt 00:00:41]} Nxf6 {[%clk 00:01:22]} {[%emt
00:00:04]} 14. Ng5 {[%clk 00:01:27]} {[%emt 00:00:03]} Rf8 {[%clk 00:01:17]}
{[%emt 00:00:07]} 15. Bh3 {[%clk 00:01:09]} {[%emt 00:00:20]} h6 {[%clk
00:00:56]} {[%emt 00:00:23]} 16. Ngxf7 {[%clk 00:01:08]} {[%emt 00:00:04]} Rxf7
{[%clk 00:00:51]} {[%emt 00:00:07]} 17. Nxf7 {[%clk 00:01:02]} {[%emt
00:00:08]} Kxf7 {[%clk 00:00:51]} {[%emt 00:00:01]} 18. Rae1 {[%clk 00:01:00]}
{[%emt 00:00:04]} Kf8 {[%clk 00:00:43]} {[%emt 00:00:10]} 19. Rxe6 {[%clk
00:00:53]} {[%emt 00:00:09]} Qd8 {[%clk 00:00:41]} {[%emt 00:00:03]} 20. Rfe1
{[%clk 00:00:51]} {[%emt 00:00:05]} Bc8 {[%clk 00:00:39]} {[%emt 00:00:04]} 21.
Rxe7 {[%clk 00:00:31]} {[%emt 00:00:22]} Bxh3 {[%clk 00:00:40]} {[%emt
00:00:01]} 22. Qg6 {[%clk 00:00:19]} {[%emt 00:00:14]} Qxe7 {[%clk 00:00:41]}
23. Rxe7 {[%clk 00:00:20]} Kxe7 {[%clk 00:00:43]} 24. Qxg7+ {[%clk 00:00:21]}
{[%emt 00:00:01]} Ke6 {[%clk 00:00:43]} 25. d5+ {[%clk 00:00:17]} {[%emt
00:00:07]} cxd5 {[%clk 00:00:44]} {[%emt 00:00:01]} 26. cxd5+ {[%clk 00:00:18]}
Kf5 {[%clk 00:00:40]} {[%emt 00:00:05]} 27. f3 {[%clk 00:00:16]} {[%emt
00:00:05]} h5 {[%clk 00:00:40]} {[%emt 00:00:03]} 28. d6 {[%clk 00:00:11]}
{[%emt 00:00:06]} Rc8 {[%clk 00:00:35]} {[%emt 00:00:07]} 29. d7 {[%clk
00:00:07]} {[%emt 00:00:06]} Rd8 {[%clk 00:00:31]} {[%emt 00:00:06]} 30. Kf2
{[%clk 00:00:05]} {[%emt 00:00:05]} Rxd7 {[%clk 00:00:32]} 31. f4 {[%clk
00:00:04]} {[%emt 00:00:02]} Rxg7 {[%clk 00:00:33]} 0-1

[Event "MČR v bleskovém šachu družstev 2019"]
[Site "Teplice, Czech Republic"]
[Date "2019.09.14"]
[Round "4.26"]
[White "Buchcar, Tomas"]
[Black "Vokoun, Jan"]
[Result "1-0"]
[TimeControl "3 mim. + 2 s"]
[BlackTitle "FM"]
[WhiteFideId "328421"]
[BlackFideId "301647"]
[WhiteElo "2145"]
[BlackElo "2123"]

1. c4 {[%clk 00:03:02]} {[%emt 00:00:03]} c5 {[%clk 00:02:57]} {[%emt
00:00:07]} 2. g3 {[%clk 00:03:02]} {[%emt 00:00:02]} Nf6 {[%clk 00:02:53]}
{[%emt 00:00:05]} 3. Bg2 {[%clk 00:03:03]} {[%emt 00:00:02]} Nc6 {[%clk
00:02:53]} {[%emt 00:00:01]} 4. Nc3 {[%clk 00:03:01]} {[%emt 00:00:06]} g6
{[%clk 00:02:53]} 5. Rb1 {[%clk 00:03:01]} {[%emt 00:00:02]} Bg7 {[%clk
00:02:54]} {[%emt 00:00:01]} 6. a3 {[%clk 00:03:01]} {[%emt 00:00:03]} a5
{[%clk 00:02:52]} {[%emt 00:00:02]} 7. e3 {[%clk 00:02:52]} {[%emt 00:00:12]}
O-O {[%clk 00:02:52]} {[%emt 00:00:02]} 8. Nge2 {[%clk 00:02:53]} {[%emt
00:00:01]} e6 {[%clk 00:02:42]} {[%emt 00:00:12]} 9. O-O {[%clk 00:02:43]}
{[%emt 00:00:13]} h5 {[%clk 00:02:35]} {[%emt 00:00:09]} 10. d4 {[%clk
00:02:39]} {[%emt 00:00:05]} cxd4 {[%clk 00:02:31]} {[%emt 00:00:07]} 11. exd4
{[%clk 00:02:37]} {[%emt 00:00:02]} d5 {[%clk 00:02:20]} {[%emt 00:00:13]} 12.
c5 {[%clk 00:02:28]} {[%emt 00:00:13]} h4 {[%clk 00:02:04]} {[%emt 00:00:17]}
13. Bg5 {[%clk 00:02:25]} {[%emt 00:00:05]} hxg3 {[%clk 00:02:04]} {[%emt
00:00:02]} 14. hxg3 {[%clk 00:02:20]} {[%emt 00:00:07]} Qe8 {[%clk 00:01:47]}
{[%emt 00:00:19]} 15. Nb5 {[%clk 00:02:15]} {[%emt 00:00:07]} e5 {[%clk
00:01:27]} {[%emt 00:00:21]} 16. Nc7 {[%clk 00:02:02]} {[%emt 00:00:15]} Qd7
{[%clk 00:01:07]} {[%emt 00:00:23]} 17. Nxa8 {[%clk 00:01:52]} {[%emt
00:00:11]} Qg4 {[%clk 00:01:03]} {[%emt 00:00:06]} 18. Bxf6 {[%clk 00:01:30]}
{[%emt 00:00:24]} Bxf6 {[%clk 00:01:04]} {[%emt 00:00:01]} 19. Nb6 {[%clk
00:01:20]} {[%emt 00:00:12]} Bf5 {[%clk 00:01:06]} {[%emt 00:00:01]} 20. Nxd5
{[%clk 00:01:18]} {[%emt 00:00:04]} Bg7 {[%clk 00:00:59]} {[%emt 00:00:08]} 21.
Ne3 {[%clk 00:01:17]} {[%emt 00:00:03]} Qg5 {[%clk 00:00:58]} {[%emt 00:00:04]}
22. Nxf5 {[%clk 00:01:15]} {[%emt 00:00:04]} Qxf5 {[%clk 00:00:58]} {[%emt
00:00:02]} 23. d5 {[%clk 00:01:12]} {[%emt 00:00:05]} Nd4 {[%clk 00:00:54]}
{[%emt 00:00:06]} 24. Nxd4 {[%clk 00:01:12]} {[%emt 00:00:02]} exd4 {[%clk
00:00:55]} 25. Qf3 {[%clk 00:01:08]} {[%emt 00:00:05]} Qc2 {[%clk 00:00:45]}
{[%emt 00:00:12]} 26. c6 {[%clk 00:00:40]} {[%emt 00:00:31]} bxc6 {[%clk
00:00:43]} {[%emt 00:00:04]} 27. dxc6 {[%clk 00:00:41]} {[%emt 00:00:01]} d3
{[%clk 00:00:29]} {[%emt 00:00:16]} 28. b4 {[%clk 00:00:41]} {[%emt 00:00:02]}
axb4 {[%clk 00:00:29]} {[%emt 00:00:03]} 29. axb4 {[%clk 00:00:41]} {[%emt
00:00:01]} d2 {[%clk 00:00:28]} {[%emt 00:00:02]} 30. b5 {[%clk 00:00:40]}
{[%emt 00:00:04]} Bd4 {[%clk 00:00:16]} {[%emt 00:00:14]} 31. b6 {[%clk
00:00:36]} {[%emt 00:00:05]} Bxb6 {[%clk 00:00:14]} {[%emt 00:00:05]} 32. Rxb6
{[%clk 00:00:37]} {[%emt 00:00:01]} Rd8 {[%clk 00:00:11]} {[%emt 00:00:05]} 33.
Qd1 {[%clk 00:00:36]} {[%emt 00:00:03]} Qc5 {[%clk 00:00:10]} {[%emt 00:00:02]}
34. Rb2 {[%clk 00:00:33]} {[%emt 00:00:05]} Qc3 {[%clk 00:00:09]} {[%emt
00:00:04]} 35. Rc2 {[%clk 00:00:34]} {[%emt 00:00:01]} Qd4 {[%clk 00:00:09]}
{[%emt 00:00:02]} 36. c7 {[%clk 00:00:34]} {[%emt 00:00:02]} Rc8 {[%clk
00:00:10]} 37. Bh3 {[%clk 00:00:32]} {[%emt 00:00:05]} Ra8 {[%emt 00:00:04]}
1-0

[Event "MČR v bleskovém šachu družstev 2019"]
[Site "Teplice, Czech Republic"]
[Date "2019.09.14"]
[Round "4.27"]
[White "Postupa, Martin"]
[Black "Tresnak, Filip"]
[Result "1-0"]
[TimeControl "3 mim. + 2 s"]
[WhiteFideId "325210"]
[BlackFideId "333905"]
[WhiteElo "1958"]
[BlackElo "1931"]

1. e4 {[%clk 00:03:02]} {[%emt 00:00:01]} c6 {[%clk 00:03:01]} {[%emt
00:00:04]} 2. d4 {[%clk 00:03:03]} {[%emt 00:00:01]} d5 {[%clk 00:03:02]} 3. e5
{[%clk 00:03:04]} Bf5 {[%clk 00:03:03]} 4. c3 {[%clk 00:03:05]} {[%emt
00:00:01]} e6 {[%clk 00:03:04]} {[%emt 00:00:03]} 5. h3 {[%clk 00:03:06]} Qb6
{[%clk 00:03:02]} {[%emt 00:00:04]} 6. Bd3 Bxd3 {[%clk 00:03:03]} 7. Qxd3
{[%clk 00:03:07]} {[%emt 00:00:01]} c5 {[%clk 00:03:03]} {[%emt 00:00:01]} 8.
Nf3 {[%clk 00:03:07]} {[%emt 00:00:02]} Nc6 {[%clk 00:03:03]} {[%emt 00:00:02]}
9. O-O {[%clk 00:03:04]} {[%emt 00:00:04]} Rc8 {[%clk 00:02:52]} {[%emt
00:00:13]} 10. dxc5 Bxc5 {[%clk 00:02:53]} 11. b4 {[%clk 00:03:05]} Be7 {[%clk
00:02:51]} {[%emt 00:00:03]} 12. Be3 {[%clk 00:03:06]} {[%emt 00:00:03]} Qc7
{[%clk 00:02:49]} {[%emt 00:00:03]} 13. Bd4 {[%clk 00:02:58]} {[%emt 00:00:11]}
a6 {[%clk 00:02:34]} {[%emt 00:00:17]} 14. a4 {[%clk 00:02:58]} {[%emt
00:00:01]} Nh6 {[%clk 00:02:33]} {[%emt 00:00:03]} 15. b5 {[%clk 00:02:54]}
{[%emt 00:00:07]} axb5 16. axb5 {[%clk 00:02:55]} Na5 {[%clk 00:02:21]} {[%emt
00:00:02]} 17. Nbd2 {[%clk 00:02:51]} {[%emt 00:00:06]} Nf5 {[%clk 00:02:19]}
{[%emt 00:00:06]} 18. b6 {[%clk 00:02:47]} {[%emt 00:00:04]} Qc6 {[%clk
00:01:58]} {[%emt 00:00:24]} 19. Rxa5 {[%clk 00:02:47]} O-O {[%clk 00:01:56]}
{[%emt 00:00:04]} 20. g4 {[%clk 00:02:40]} {[%emt 00:00:10]} Nxd4 {[%clk
00:01:53]} {[%emt 00:00:05]} 21. cxd4 {[%clk 00:02:39]} {[%emt 00:00:02]} Qxb6
{[%clk 00:01:54]} {[%emt 00:00:02]} 22. Rb5 {[%clk 00:02:38]} {[%emt 00:00:03]}
Qa6 {[%clk 00:01:51]} {[%emt 00:00:05]} 23. Rfb1 {[%clk 00:02:35]} {[%emt
00:00:05]} Rc7 {[%clk 00:01:39]} {[%emt 00:00:15]} 24. Qb3 {[%clk 00:02:32]}
{[%emt 00:00:04]} Rb8 {[%clk 00:01:16]} {[%emt 00:00:25]} 25. Kg2 {[%clk
00:02:32]} {[%emt 00:00:02]} b6 {[%clk 00:01:14]} {[%emt 00:00:04]} 26. Ne1
{[%clk 00:02:11]} {[%emt 00:00:23]} Bg5 {[%clk 00:01:05]} {[%emt 00:00:11]} 27.
Ndf3 {[%clk 00:02:09]} {[%emt 00:00:04]} 1-0

[Event "MČR v bleskovém šachu družstev 2019"]
[Site "Teplice, Czech Republic"]
[Date "2019.09.14"]
[Round "4.28"]
[White "Prudek, Jiri"]
[Black "Krouzel, Jaroslav"]
[Result "0-1"]
[TimeControl "3 mim. + 2 s"]
[WhiteFideId "327310"]
[BlackFideId "301566"]
[WhiteElo "1962"]
[BlackElo "2086"]

1. e4 {[%clk 00:03:00]} {[%emt 00:00:03]} e6 {[%clk 00:03:01]} {[%emt
00:00:03]} 2. d4 {[%clk 00:03:01]} {[%emt 00:00:02]} d5 {[%clk 00:03:02]} 3.
Nc3 {[%clk 00:02:56]} {[%emt 00:00:08]} Bb4 {[%clk 00:03:02]} {[%emt 00:00:02]}
4. e5 {[%clk 00:02:57]} {[%emt 00:00:01]} c5 {[%clk 00:03:03]} 5. a3 {[%clk
00:02:55]} {[%emt 00:00:05]} Bxc3+ {[%clk 00:03:03]} {[%emt 00:00:01]} 6. bxc3
{[%clk 00:02:56]} {[%emt 00:00:01]} Ne7 {[%clk 00:03:04]} {[%emt 00:00:01]} 7.
Bd3 {[%clk 00:02:52]} {[%emt 00:00:06]} Nbc6 {[%clk 00:03:01]} {[%emt
00:00:05]} 8. Nf3 {[%clk 00:02:47]} {[%emt 00:00:07]} Qa5 {[%clk 00:03:02]}
{[%emt 00:00:02]} 9. Bd2 {[%clk 00:02:46]} {[%emt 00:00:02]} c4 {[%clk
00:03:02]} {[%emt 00:00:02]} 10. Be2 {[%clk 00:02:44]} {[%emt 00:00:03]} Bd7
{[%clk 00:03:04]} 11. O-O {[%clk 00:02:43]} {[%emt 00:00:03]} O-O-O {[%clk
00:03:03]} {[%emt 00:00:03]} 12. Qb1 {[%clk 00:02:36]} {[%emt 00:00:09]} Qc7
{[%clk 00:03:03]} {[%emt 00:00:02]} 13. a4 {[%clk 00:02:33]} {[%emt 00:00:05]}
f5 {[%clk 00:02:59]} {[%emt 00:00:05]} 14. a5 {[%clk 00:02:13]} {[%emt
00:00:23]} h6 {[%clk 00:03:00]} {[%emt 00:00:01]} 15. a6 {[%clk 00:02:12]}
{[%emt 00:00:03]} b6 {[%clk 00:03:01]} {[%emt 00:00:01]} 16. Qa2 {[%clk
00:01:53]} {[%emt 00:00:22]} g5 {[%clk 00:02:58]} {[%emt 00:00:04]} 17. Qa3
{[%clk 00:01:50]} {[%emt 00:00:05]} Ng6 {[%clk 00:02:52]} {[%emt 00:00:08]} 18.
g3 {[%clk 00:01:37]} {[%emt 00:00:15]} g4 {[%clk 00:02:47]} {[%emt 00:00:07]}
19. Ne1 {[%clk 00:01:32]} {[%emt 00:00:06]} f4 {[%clk 00:02:39]} {[%emt
00:00:11]} 20. gxf4 {[%clk 00:01:30]} {[%emt 00:00:05]} h5 {[%clk 00:02:35]}
{[%emt 00:00:05]} 21. Qd6 {[%emt 00:00:09]} Qxd6 {[%clk 00:02:13]} {[%emt
00:00:23]} 22. exd6 {[%clk 00:01:25]} {[%emt 00:00:01]} Be8 {[%clk 00:02:02]}
{[%emt 00:00:13]} 23. Ng2 {[%clk 00:00:55]} {[%emt 00:00:32]} Rxd6 {[%clk
00:02:00]} {[%emt 00:00:04]} 24. f3 {[%clk 00:00:49]} {[%emt 00:00:08]} gxf3 25.
Bxf3 {[%clk 00:00:50]} Nce7 {[%clk 00:01:51]} {[%emt 00:00:04]} 26. Rae1 {[%clk
00:00:43]} {[%emt 00:00:10]} Nf5 {[%clk 00:01:48]} {[%emt 00:00:05]} 27. Re2
{[%clk 00:00:27]} {[%emt 00:00:18]} Kd7 {[%clk 00:01:36]} {[%emt 00:00:12]} 28.
Ne3 {[%clk 00:00:26]} {[%emt 00:00:04]} Ngh4 {[%clk 00:01:35]} {[%emt
00:00:03]} 29. Nxf5 {[%clk 00:00:26]} {[%emt 00:00:02]} Nxf5 {[%clk 00:01:35]}
{[%emt 00:00:03]} 30. Kf2 {[%clk 00:00:23]} {[%emt 00:00:04]} b5 {[%clk
00:01:21]} {[%emt 00:00:16]} 31. Re5 {[%clk 00:00:24]} {[%emt 00:00:02]} Bg6
{[%clk 00:01:17]} {[%emt 00:00:06]} 32. Ra1 {[%clk 00:00:24]} {[%emt 00:00:01]}
Rb8 {[%clk 00:01:16]} {[%emt 00:00:03]} 33. Ree1 {[%clk 00:00:20]} {[%emt
00:00:06]} Rbb6 {[%clk 00:01:17]} {[%emt 00:00:01]} 34. Ra5 {[%clk 00:00:20]}
Nh4 {[%clk 00:01:11]} {[%emt 00:00:09]} 35. Bd1 {[%clk 00:00:20]} {[%emt
00:00:02]} Nf5 {[%clk 00:01:08]} {[%emt 00:00:05]} 36. Be2 {[%clk 00:00:19]}
{[%emt 00:00:03]} Kc7 {[%clk 00:01:07]} {[%emt 00:00:02]} 37. Rb1 {[%clk
00:00:20]} {[%emt 00:00:02]} Be8 {[%clk 00:01:07]} {[%emt 00:00:01]} 38. Bf3
{[%clk 00:00:18]} {[%emt 00:00:05]} Rxa6 {[%clk 00:01:07]} {[%emt 00:00:02]} 39.
Rxa6 {[%clk 00:00:17]} {[%emt 00:00:03]} Rxa6 {[%clk 00:01:08]} {[%emt
00:00:01]} 40. Be1 {[%clk 00:00:11]} {[%emt 00:00:08]} Ra2 {[%clk 00:01:08]}
{[%emt 00:00:02]} 41. Bd1 {[%clk 00:00:11]} {[%emt 00:00:02]} Nd6 {[%clk
00:01:07]} {[%emt 00:00:03]} 42. Kf3 {[%clk 00:00:11]} {[%emt 00:00:01]} Ne4
{[%clk 00:01:08]} {[%emt 00:00:02]} 43. Kg2 {[%clk 00:00:06]} {[%emt 00:00:08]}
a5 {[%clk 00:01:02]} {[%emt 00:00:07]} 44. Kh3 {[%clk 00:00:07]} {[%emt
00:00:01]} Ra3 {[%clk 00:00:58]} {[%emt 00:00:06]} 45. Kh4 {[%clk 00:00:05]}
{[%emt 00:00:04]} Nxc3 {[%clk 00:00:57]} {[%emt 00:00:03]} 46. Bxc3 {[%clk
00:00:05]} {[%emt 00:00:02]} Rxc3 {[%clk 00:00:57]} {[%emt 00:00:02]} 47. h3
{[%clk 00:00:06]} b4 {[%clk 00:00:56]} {[%emt 00:00:02]} 48. Kg5 {[%clk
00:00:05]} {[%emt 00:00:04]} Ba4 {[%clk 00:00:55]} {[%emt 00:00:03]} 49. Rb2
{[%clk 00:00:05]} {[%emt 00:00:03]} Rxh3 {[%clk 00:00:53]} {[%emt 00:00:04]} 50.
Kf6 {[%clk 00:00:06]} Rh1 {[%clk 00:00:53]} {[%emt 00:00:02]} 51. Bf3 {[%clk
00:00:05]} {[%emt 00:00:03]} Re1 {[%clk 00:00:53]} {[%emt 00:00:01]} 52. Bxh5
{[%clk 00:00:05]} {[%emt 00:00:03]} Kb6 {[%clk 00:00:50]} {[%emt 00:00:05]} 53.
Bf7 {[%clk 00:00:05]} {[%emt 00:00:02]} Bd7 {[%clk 00:00:46]} {[%emt 00:00:05]}
54. Ke7 {[%clk 00:00:05]} {[%emt 00:00:03]} Bc8 {[%clk 00:00:46]} {[%emt
00:00:01]} 55. Kd6 {[%clk 00:00:06]} {[%emt 00:00:02]} Re4 {[%clk 00:00:36]}
{[%emt 00:00:12]} 56. f5 {[%clk 00:00:04]} {[%emt 00:00:04]} Rxd4 {[%clk
00:00:34]} {[%emt 00:00:04]} 57. fxe6 {[%clk 00:00:05]} {[%emt 00:00:01]} Bb7
{[%clk 00:00:30]} {[%emt 00:00:06]} 58. e7 {[%clk 00:00:05]} {[%emt 00:00:02]}
Bc6 {[%clk 00:00:31]} {[%emt 00:00:02]} 59. e8=Q {[%clk 00:00:04]} {[%emt
00:00:03]} Bxe8 {[%clk 00:00:31]} {[%emt 00:00:01]} 60. Bxe8 {[%clk 00:00:05]}
Rd2 {[%clk 00:00:30]} {[%emt 00:00:03]} 61. Bg6 {[%clk 00:00:06]} {[%emt
00:00:01]} b3 {[%clk 00:00:28]} {[%emt 00:00:04]} 62. Bf5 {[%clk 00:00:05]}
{[%emt 00:00:03]} a4 {[%clk 00:00:29]} {[%emt 00:00:01]} 63. Rb1 {[%clk
00:00:04]} {[%emt 00:00:03]} Kb5 {[%clk 00:00:26]} {[%emt 00:00:05]} 64. cxb3
{[%clk 00:00:06]} {[%emt 00:00:01]} axb3 {[%clk 00:00:26]} {[%emt 00:00:01]} 65.
Bd7+ {[%clk 00:00:05]} {[%emt 00:00:03]} Kb4 {[%clk 00:00:26]} {[%emt
00:00:01]} 66. Bc6 {[%clk 00:00:04]} {[%emt 00:00:04]} d4 {[%clk 00:00:27]} 67.
Kd5 {[%clk 00:00:04]} {[%emt 00:00:02]} c3 {[%clk 00:00:27]} {[%emt 00:00:02]}
68. Kd6 {[%clk 00:00:03]} {[%emt 00:00:03]} c2 {[%clk 00:00:27]} 69. Rc1 {[%clk
00:00:04]} {[%emt 00:00:02]} b2 {[%clk 00:00:27]} {[%emt 00:00:01]} 70. Rh1
{[%clk 00:00:04]} {[%emt 00:00:03]} c1=Q {[%clk 00:00:25]} {[%emt 00:00:03]} 71.
Rh4 {[%clk 00:00:04]} {[%emt 00:00:02]} Qc5+ {[%clk 00:00:24]} {[%emt
00:00:03]} 72. Kd7 {[%clk 00:00:06]} {[%emt 00:00:01]} Rf2 {[%clk 00:00:19]}
{[%emt 00:00:07]} 0-1